[Event "*** Titled Tuesday Blitz AM"]
[Site "Chess.com"]
[Date "2020.01.07"]
[Round "8"]
[White "FMAntonio"]
[Black "PaulfromSPb"]
[Result "1-0"]
[WhiteElo "2512"]
[BlackElo "2651"]
[TimeControl "180+2"]
[EndTime "10:50:01 PST"]
[Termination "FMAntonio won by resignation"]

1. d4 {[%clk 0:02:58.1]} 1... Nf6 {[%clk 0:02:59.6]} 2. c4 {[%clk 0:02:58.6]}
2... e6 {[%clk 0:03:01]} 3. Nc3 {[%clk 0:02:59.2]} 3... Bb4 {[%clk 0:03:02.6]}
4. e3 {[%clk 0:03:00.2]} 4... O-O {[%clk 0:03:03.4]} 5. Bd3 {[%clk 0:02:59.9]}
5... c5 {[%clk 0:03:03.7]} 6. Nf3 {[%clk 0:03:00.2]} 6... d5 {[%clk 0:03:04.7]}
7. O-O {[%clk 0:02:59.6]} 7... Nc6 {[%clk 0:03:06.3]} 8. cxd5 {[%clk 0:02:57.3]}
8... exd5 {[%clk 0:03:06.8]} 9. dxc5 {[%clk 0:02:58.2]} 9... Bxc5 {[%clk
0:03:05.4]} 10. h3 {[%clk 0:02:58.8]} 10... Re8 {[%clk 0:03:04.3]} 11. b3 {[%clk
0:02:47.5]} 11... d4 {[%clk 0:02:58.6]} 12. Na4 {[%clk 0:02:46.3]} 12... Bd6
{[%clk 0:02:27.6]} 13. exd4 {[%clk 0:02:41.1]} 13... Nb4 {[%clk 0:02:27]} 14.
Bg5 {[%clk 0:02:36.1]} 14... Nxd3 {[%clk 0:02:26.9]} 15. Qxd3 {[%clk 0:02:36.2]}
15... h6 {[%clk 0:02:27.9]} 16. Bh4 {[%clk 0:02:34.3]} 16... Bd7 {[%clk
0:02:26.3]} 17. Rae1 {[%clk 0:02:22.6]} 17... Rxe1 {[%clk 0:02:25.3]} 18. Rxe1
{[%clk 0:02:22.7]} 18... Bc6 {[%clk 0:02:19.9]} 19. Nc3 {[%clk 0:02:20.5]} 19...
Bb4 {[%clk 0:02:19.4]} 20. Ne5 {[%clk 0:02:17]} 20... Rc8 {[%clk 0:02:16.8]} 21.
Nxf7 {[%clk 0:01:20.2]} 21... Qf8 {[%clk 0:01:45.2]} 22. Nxh6+ {[%clk
0:00:57.1]} 22... gxh6 {[%clk 0:01:43.1]} 23. Re6 {[%clk 0:00:57.7]} 23... Qg7
{[%clk 0:01:33.6]} 24. d5 {[%clk 0:00:49.8]} 24... Bxc3 {[%clk 0:01:19.9]} 25.
dxc6 {[%clk 0:00:50.1]} 25... Ba1 {[%clk 0:00:52]} 26. cxb7 {[%clk 0:00:38.5]}
26... Rc1+ {[%clk 0:00:48.1]} 27. Kh2 {[%clk 0:00:39.1]} 27... Qc7+ {[%clk
0:00:49]} 28. Qg3+ {[%clk 0:00:33.2]} 28... Qxg3+ {[%clk 0:00:33.4]} 29. Bxg3
{[%clk 0:00:32.2]} 29... Nd7 {[%clk 0:00:34.2]} 30. Rd6 {[%clk 0:00:17.6]} 30...
Rc7 {[%clk 0:00:25.9]} 31. Rxd7 {[%clk 0:00:18.6]} 31... Rxd7 {[%clk 0:00:27.2]}
32. b8=Q+ {[%clk 0:00:19.5]} 32... Kf7 {[%clk 0:00:28.7]} 33. Qf4+ {[%clk
0:00:20.3]} 33... Kg6 {[%clk 0:00:29.4]} 1-0

[Event "*** Titled Tuesday Blitz AM"]
[Site "Chess.com"]
[Date "2020.01.07"]
[Round "8"]
[White "sandromareco"]
[Black "OneTrickPony_82"]
[Result "1-0"]
[WhiteElo "2777"]
[BlackElo "2422"]
[TimeControl "180+2"]
[EndTime "10:50:01 PST"]
[Termination "sandromareco won by resignation"]

1. d4 {[%clk 0:03:01.9]} 1... Nf6 {[%clk 0:03:00.8]} 2. Nf3 {[%clk 0:03:02]}
2... d5 {[%clk 0:03:01.6]} 3. Bf4 {[%clk 0:03:02.7]} 3... c5 {[%clk 0:03:02.2]}
4. e3 {[%clk 0:03:03.5]} 4... Nc6 {[%clk 0:03:03.4]} 5. c3 {[%clk 0:03:03.6]}
5... Qb6 {[%clk 0:03:03.6]} 6. Qb3 {[%clk 0:03:04]} 6... c4 {[%clk 0:03:04.5]}
7. Qc2 {[%clk 0:03:05]} 7... Bf5 {[%clk 0:03:05.4]} 8. Qc1 {[%clk 0:03:06.3]}
8... Nh5 {[%clk 0:03:06.2]} 9. Bg5 {[%clk 0:03:05.4]} 9... f6 {[%clk 0:02:49.9]}
10. Bh4 {[%clk 0:03:06.3]} 10... g5 {[%clk 0:02:51.1]} 11. Bg3 {[%clk
0:03:07.3]} 11... Bg7 {[%clk 0:02:22.2]} 12. Nbd2 {[%clk 0:03:03.2]} 12... Nxg3
{[%clk 0:02:11.2]} 13. hxg3 {[%clk 0:03:02.8]} 13... h5 {[%clk 0:02:12.9]} 14.
Be2 {[%clk 0:02:54.4]} 14... g4 {[%clk 0:02:03]} 15. Nh4 {[%clk 0:02:52.4]}
15... Bh7 {[%clk 0:02:03.5]} 16. Bd1 {[%clk 0:02:28.7]} 16... e5 {[%clk
0:02:00.9]} 17. Bc2 {[%clk 0:02:28.3]} 17... Bd3 {[%clk 0:01:47.9]} 18. Nf5
{[%clk 0:02:23.9]} 18... Kf7 {[%clk 0:01:42.9]} 19. Bxd3 {[%clk 0:02:09.5]}
19... cxd3 {[%clk 0:01:42.5]} 20. Nb3 {[%clk 0:02:10.6]} 20... e4 {[%clk
0:01:39.1]} 21. Nc5 {[%clk 0:02:05.8]} 21... Bf8 {[%clk 0:01:35.8]} 22. b4
{[%clk 0:02:06.5]} 22... Qc7 {[%clk 0:01:31]} 23. Qb2 {[%clk 0:01:59.9]} 23...
b6 {[%clk 0:01:31.3]} 24. Qb3 {[%clk 0:01:47.9]} 24... Rd8 {[%clk 0:01:28.6]}
25. Nxe4 {[%clk 0:01:46.8]} 25... Qd7 {[%clk 0:01:00.9]} 26. Nh4 {[%clk
0:01:44]} 26... Kg7 {[%clk 0:01:00.4]} 27. Nd2 {[%clk 0:01:43.8]} 27... Ne7
{[%clk 0:00:49.1]} 28. Qb1 {[%clk 0:01:43.2]} 28... Rc8 {[%clk 0:00:41.3]} 29.
Qxd3 {[%clk 0:01:43.2]} 29... f5 {[%clk 0:00:38]} 30. O-O {[%clk 0:01:37.7]}
30... Kf6 {[%clk 0:00:39.1]} 31. f3 {[%clk 0:01:36]} 31... Bh6 {[%clk
0:00:35.3]} 32. e4 {[%clk 0:01:30.4]} 32... Bg5 {[%clk 0:00:22.4]} 33. Nxf5
{[%clk 0:01:29]} 33... Nxf5 {[%clk 0:00:21.4]} 34. fxg4 {[%clk 0:01:28.5]} 34...
hxg4 {[%clk 0:00:19.4]} 35. Rxf5+ {[%clk 0:01:28.2]} 35... Kg6 {[%clk
0:00:20.8]} 36. Rxd5 {[%clk 0:01:24.3]} 36... Rxc3 {[%clk 0:00:09.8]} 37. Qxc3
{[%clk 0:01:17]} 37... Qh7 {[%clk 0:00:10.9]} 38. Qc6+ {[%clk 0:01:09.2]} 38...
Bf6 {[%clk 0:00:12.1]} 39. Rf5 {[%clk 0:01:09.8]} 39... Qh1+ {[%clk 0:00:13]}
40. Kf2 {[%clk 0:01:11]} 1-0

[Event "*** Titled Tuesday Blitz AM"]
[Site "Chess.com"]
[Date "2020.01.07"]
[Round "8"]
[White "TBergh98"]
[Black "2nd_life"]
[Result "0-1"]
[WhiteElo "2353"]
[BlackElo "2493"]
[TimeControl "180+2"]
[EndTime "10:50:12 PST"]
[Termination "2nd_life won by resignation"]

1. d4 {[%clk 0:03:01.9]} 1... Nf6 {[%clk 0:03:00]} 2. Bg5 {[%clk 0:03:03.2]}
2... e6 {[%clk 0:03:01]} 3. e4 {[%clk 0:03:03.9]} 3... h6 {[%clk 0:03:02.2]} 4.
Bxf6 {[%clk 0:03:05.3]} 4... Qxf6 {[%clk 0:03:04.1]} 5. Nf3 {[%clk 0:03:07.1]}
5... d6 {[%clk 0:03:02.5]} 6. Nc3 {[%clk 0:03:08.1]} 6... a6 {[%clk 0:03:01.1]}
7. Qd2 {[%clk 0:03:08.8]} 7... Qd8 {[%clk 0:03:01.1]} 8. O-O-O {[%clk
0:03:09.8]} 8... Nd7 {[%clk 0:03:01]} 9. e5 {[%clk 0:03:10.7]} 9... d5 {[%clk
0:02:56.6]} 10. Ne2 {[%clk 0:03:05.5]} 10... Be7 {[%clk 0:02:50.2]} 11. Kb1
{[%clk 0:03:05.8]} 11... c5 {[%clk 0:02:48.3]} 12. c3 {[%clk 0:03:06.2]} 12...
b5 {[%clk 0:02:45.3]} 13. h4 {[%clk 0:03:07.1]} 13... b4 {[%clk 0:02:30.5]} 14.
cxb4 {[%clk 0:03:08.1]} 14... c4 {[%clk 0:02:27.6]} 15. g4 {[%clk 0:03:06.6]}
15... Rb8 {[%clk 0:02:27.4]} 16. Nc3 {[%clk 0:02:43.2]} 16... Bxb4 {[%clk
0:02:25.4]} 17. Ka1 {[%clk 0:02:44.3]} 17... g6 {[%clk 0:02:14.3]} 18. Be2
{[%clk 0:02:38.4]} 18... Nb6 {[%clk 0:02:05.9]} 19. Qc2 {[%clk 0:02:31.9]} 19...
Bd7 {[%clk 0:01:59.8]} 20. Rc1 {[%clk 0:02:24.3]} 20... Qe7 {[%clk 0:01:49.9]}
21. h5 {[%clk 0:02:05.4]} 21... g5 {[%clk 0:01:48.3]} 22. Nd2 {[%clk 0:02:04.8]}
22... a5 {[%clk 0:01:40.6]} 23. Ndb1 {[%clk 0:02:05.2]} 23... a4 {[%clk
0:01:36]} 24. a3 {[%clk 0:02:06.2]} 24... Ba5 {[%clk 0:01:35.6]} 25. Rhf1 {[%clk
0:02:02.6]} 25... Kd8 {[%clk 0:01:29.9]} 26. f4 {[%clk 0:02:03.6]} 26... gxf4
{[%clk 0:01:30.1]} 27. Rxf4 {[%clk 0:02:05.5]} 27... Be8 {[%clk 0:01:30.6]} 28.
Rcf1 {[%clk 0:01:59.7]} 28... Rb7 {[%clk 0:01:17.2]} 29. Rf6 {[%clk 0:01:57.4]}
29... Nd7 {[%clk 0:01:06]} 30. Qxa4 {[%clk 0:01:07.6]} 30... Bxc3 {[%clk
0:01:06.3]} 31. Nxc3 {[%clk 0:01:09.5]} 31... Nxf6 {[%clk 0:01:06]} 32. Qa8+
{[%clk 0:01:11]} 32... Kc7 {[%clk 0:01:05.7]} 33. exf6 {[%clk 0:01:05.1]} 33...
Qd6 {[%clk 0:01:02.4]} 34. Bf3 {[%clk 0:00:56.1]} 34... Qb6 {[%clk 0:00:59]} 35.
Rf2 {[%clk 0:00:46.6]} 35... Qxd4 {[%clk 0:00:57.8]} 36. Bxd5 {[%clk 0:00:36.2]}
36... Ra7 {[%clk 0:00:40.8]} 37. Qxa7+ {[%clk 0:00:27.1]} 37... Qxa7 {[%clk
0:00:40.3]} 38. Bxe6 {[%clk 0:00:26.5]} 38... Qxf2 {[%clk 0:00:38.6]} 0-1

[Event "*** Titled Tuesday Blitz AM"]
[Site "Chess.com"]
[Date "2020.01.07"]
[Round "8"]
[White "dolynachess"]
[Black "kinga2008"]
[Result "1-0"]
[WhiteElo "2355"]
[BlackElo "1850"]
[TimeControl "180+2"]
[EndTime "10:50:13 PST"]
[Termination "dolynachess won by resignation"]

1. d4 {[%clk 0:03:01.9]} 1... g6 {[%clk 0:02:54]} 2. c4 {[%clk 0:03:03.8]} 2...
Bg7 {[%clk 0:02:42.4]} 3. Nf3 {[%clk 0:03:04.4]} 3... Nf6 {[%clk 0:02:41.2]} 4.
Nc3 {[%clk 0:03:04.5]} 4... O-O {[%clk 0:02:32.8]} 5. e4 {[%clk 0:03:04]} 5...
d6 {[%clk 0:02:24.1]} 6. Be2 {[%clk 0:03:04.8]} 6... e5 {[%clk 0:02:19.7]} 7. d5
{[%clk 0:03:04.8]} 7... Ne8 {[%clk 0:02:05.3]} 8. Be3 {[%clk 0:03:03.3]} 8... f5
{[%clk 0:01:58.5]} 9. Bg5 {[%clk 0:03:04.1]} 9... Bf6 {[%clk 0:01:53.1]} 10.
Bxf6 {[%clk 0:02:53.9]} 10... Nxf6 {[%clk 0:01:42.5]} 11. Nd2 {[%clk 0:02:55.8]}
11... Nbd7 {[%clk 0:01:31.2]} 12. b4 {[%clk 0:02:50.6]} 12... a5 {[%clk
0:01:30.4]} 13. a3 {[%clk 0:02:51.1]} 13... axb4 {[%clk 0:01:27.2]} 14. axb4
{[%clk 0:02:53]} 14... Rxa1 {[%clk 0:01:25.6]} 15. Qxa1 {[%clk 0:02:54.9]} 15...
Nxe4 {[%clk 0:01:25.2]} 16. Ndxe4 {[%clk 0:02:55.7]} 16... fxe4 {[%clk
0:01:22.8]} 17. Nxe4 {[%clk 0:02:57.6]} 17... Nf6 {[%clk 0:01:22]} 18. Nxf6+
{[%clk 0:02:56]} 18... Qxf6 {[%clk 0:01:20.8]} 19. O-O {[%clk 0:02:57.9]} 19...
Qf4 {[%clk 0:01:12.9]} 20. Qc3 {[%clk 0:02:51.1]} 20... b6 {[%clk 0:00:59.2]}
21. c5 {[%clk 0:02:39.7]} 21... bxc5 {[%clk 0:00:58.7]} 22. bxc5 {[%clk
0:02:41.6]} 22... Qd4 {[%clk 0:00:50.2]} 23. Qxd4 {[%clk 0:02:37.8]} 23... exd4
{[%clk 0:00:50.2]} 24. cxd6 {[%clk 0:02:15.7]} 24... cxd6 {[%clk 0:00:47.4]} 25.
Rd1 {[%clk 0:02:16.4]} 25... Re8 {[%clk 0:00:48]} 26. Kf1 {[%clk 0:02:15.1]}
26... Re5 {[%clk 0:00:34.4]} 27. Rxd4 {[%clk 0:02:15.2]} 27... Bb7 {[%clk
0:00:33.9]} 28. Bc4 {[%clk 0:02:14.8]} 28... Kf7 {[%clk 0:00:31.1]} 29. f4
{[%clk 0:02:03.5]} 29... Re3 {[%clk 0:00:28.7]} 30. Bd3 {[%clk 0:02:00]} 30...
Kf6 {[%clk 0:00:20.9]} 31. Kf2 {[%clk 0:02:00.4]} 31... Re7 {[%clk 0:00:18]} 32.
Be2 {[%clk 0:01:56.8]} 32... Rc7 {[%clk 0:00:15.2]} 33. Bf3 {[%clk 0:01:53.8]}
33... Rc2+ {[%clk 0:00:15.6]} 34. Kg3 {[%clk 0:01:55.1]} 34... Rc3 {[%clk
0:00:17]} 35. Kh4 {[%clk 0:01:53.4]} 35... h6 {[%clk 0:00:16.1]} 36. Rb4 {[%clk
0:01:51.2]} 36... Bc8 {[%clk 0:00:13.6]} 37. Rb6 {[%clk 0:01:48]} 37... g5+
{[%clk 0:00:11]} 38. Kh5 {[%clk 0:01:42.2]} 38... gxf4 {[%clk 0:00:09.5]} 39.
Rxd6+ {[%clk 0:01:37.7]} 39... Ke5 {[%clk 0:00:10.5]} 40. Rc6 {[%clk 0:01:35]}
40... Rxc6 {[%clk 0:00:06.5]} 41. dxc6 {[%clk 0:01:35.9]} 41... Be6 {[%clk
0:00:04.2]} 42. Kxh6 {[%clk 0:01:36.6]} 42... Bf5 {[%clk 0:00:05.1]} 43. Kg7
{[%clk 0:01:33.1]} 43... Kd6 {[%clk 0:00:05.3]} 44. h4 {[%clk 0:01:33.5]} 44...
Bd3 {[%clk 0:00:03.8]} 45. h5 {[%clk 0:01:34.2]} 45... Bb5 {[%clk 0:00:03.8]}
1-0

[Event "*** Titled Tuesday Blitz AM"]
[Site "Chess.com"]
[Date "2020.01.07"]
[Round "8"]
[White "vinniethepooh"]
[Black "manmanlai1"]
[Result "1/2-1/2"]
[WhiteElo "2597"]
[BlackElo "2383"]
[TimeControl "180+2"]
[EndTime "10:50:18 PST"]
[Termination "Game drawn by repetition"]

1. d4 {[%clk 0:03:01.9]} 1... d5 {[%clk 0:02:59.6]} 2. c4 {[%clk 0:03:03.1]}
2... e6 {[%clk 0:03:00.7]} 3. Nc3 {[%clk 0:03:04.1]} 3... a6 {[%clk 0:03:01.7]}
4. cxd5 {[%clk 0:03:03.6]} 4... exd5 {[%clk 0:03:03.6]} 5. Nf3 {[%clk
0:03:05.5]} 5... c6 {[%clk 0:03:03.7]} 6. Bf4 {[%clk 0:03:01.3]} 6... Bd6 {[%clk
0:03:04.6]} 7. Bxd6 {[%clk 0:03:00.1]} 7... Qxd6 {[%clk 0:03:06.5]} 8. e3 {[%clk
0:02:59.5]} 8... Bf5 {[%clk 0:03:03.7]} 9. Qb3 {[%clk 0:02:52.4]} 9... Qe7
{[%clk 0:02:51.1]} 10. Na4 {[%clk 0:02:39.2]} 10... Nf6 {[%clk 0:02:38.4]} 11.
Nb6 {[%clk 0:02:39.7]} 11... Ra7 {[%clk 0:02:39.6]} 12. Bd3 {[%clk 0:02:39.6]}
12... Be6 {[%clk 0:02:33.9]} 13. O-O {[%clk 0:02:28.1]} 13... O-O {[%clk
0:02:35.1]} 14. a4 {[%clk 0:02:24.1]} 14... Nbd7 {[%clk 0:02:30.5]} 15. a5
{[%clk 0:02:18.1]} 15... Nxb6 {[%clk 0:02:31.2]} 16. Qxb6 {[%clk 0:02:19]} 16...
Raa8 {[%clk 0:02:31.1]} 17. Ne5 {[%clk 0:02:20.3]} 17... Ne8 {[%clk 0:02:30.2]}
18. Qc5 {[%clk 0:01:42.9]} 18... Nd6 {[%clk 0:02:27.5]} 19. b4 {[%clk
0:01:43.9]} 19... Rad8 {[%clk 0:02:19.2]} 20. Qc2 {[%clk 0:01:39.8]} 20... Qh4
{[%clk 0:02:12.2]} 21. g3 {[%clk 0:01:34.4]} 21... Qh3 {[%clk 0:02:10.7]} 22.
Rfe1 {[%clk 0:01:26.1]} 22... Bf5 {[%clk 0:02:08.1]} 23. Bxf5 {[%clk 0:01:23.6]}
23... Nxf5 {[%clk 0:02:10]} 24. Qe2 {[%clk 0:01:21.5]} 24... Nd6 {[%clk
0:02:08.1]} 25. Qg4 {[%clk 0:01:17.1]} 25... Qh6 {[%clk 0:02:07.6]} 26. Qf4
{[%clk 0:01:16.2]} 26... Qe6 {[%clk 0:02:06.4]} 27. Nd3 {[%clk 0:01:16.1]} 27...
Rfe8 {[%clk 0:02:04.9]} 28. Nc5 {[%clk 0:01:17.1]} 28... Qc8 {[%clk 0:01:54.2]}
29. Re2 {[%clk 0:01:17.4]} 29... Re7 {[%clk 0:01:55]} 30. Rae1 {[%clk
0:01:18.3]} 30... Rde8 {[%clk 0:01:56.2]} 31. Kg2 {[%clk 0:01:18.9]} 31... Qd8
{[%clk 0:01:52.6]} 32. h4 {[%clk 0:01:11]} 32... Ne4 {[%clk 0:01:51.1]} 33. f3
{[%clk 0:01:03.5]} 33... Nc3 {[%clk 0:01:46.6]} 34. Rc2 {[%clk 0:01:02.6]} 34...
Nb5 {[%clk 0:01:47.5]} 35. h5 {[%clk 0:00:59.5]} 35... Qd6 {[%clk 0:01:35.5]}
36. Qg4 {[%clk 0:00:47.1]} 36... Qf6 {[%clk 0:01:25.6]} 37. Nd7 {[%clk
0:00:28.3]} 37... Qd6 {[%clk 0:01:25.7]} 38. Nc5 {[%clk 0:00:29.2]} 38... h6
{[%clk 0:01:13.9]} 39. Kf2 {[%clk 0:00:19.4]} 39... Qf6 {[%clk 0:01:05]} 40. Nd7
{[%clk 0:00:20.5]} 40... Qd6 {[%clk 0:01:05.7]} 41. Nc5 {[%clk 0:00:21.7]} 41...
Qf6 {[%clk 0:01:05.3]} 42. Nd7 {[%clk 0:00:18.8]} 42... Qd6 {[%clk 0:01:02.3]}
43. Nc5 {[%clk 0:00:19.8]} 1/2-1/2

[Event "*** Titled Tuesday Blitz AM"]
[Site "Chess.com"]
[Date "2020.01.07"]
[Round "8"]
[White "Peroncio"]
[Black "Mr_Sinigami"]
[Result "1-0"]
[WhiteElo "2757"]
[BlackElo "2556"]
[TimeControl "180+2"]
[EndTime "10:50:19 PST"]
[Termination "Peroncio won by resignation"]

1. Nf3 {[%clk 0:03:01.9]} 1... Nf6 {[%clk 0:02:58.6]} 2. g3 {[%clk 0:03:03.2]}
2... d5 {[%clk 0:02:58.9]} 3. Bg2 {[%clk 0:03:04.1]} 3... Bf5 {[%clk 0:03:00.4]}
4. O-O {[%clk 0:03:05.3]} 4... e6 {[%clk 0:03:01.2]} 5. b3 {[%clk 0:03:06.9]}
5... h6 {[%clk 0:03:01.5]} 6. Bb2 {[%clk 0:03:08.4]} 6... Be7 {[%clk 0:03:02.2]}
7. d3 {[%clk 0:03:10]} 7... O-O {[%clk 0:03:02.7]} 8. Nbd2 {[%clk 0:03:11.7]}
8... c6 {[%clk 0:03:03]} 9. Re1 {[%clk 0:03:12.7]} 9... Nbd7 {[%clk 0:03:01.5]}
10. e4 {[%clk 0:03:14.2]} 10... Bh7 {[%clk 0:03:01.2]} 11. Qe2 {[%clk
0:03:06.3]} 11... a5 {[%clk 0:03:01.6]} 12. a3 {[%clk 0:03:06.1]} 12... Nc5
{[%clk 0:02:49.8]} 13. Ne5 {[%clk 0:02:58]} 13... Re8 {[%clk 0:02:40.3]} 14.
Rad1 {[%clk 0:02:39.3]} 14... Qc7 {[%clk 0:02:34.4]} 15. h4 {[%clk 0:02:38.6]}
15... Rad8 {[%clk 0:02:23.3]} 16. a4 {[%clk 0:02:31]} 16... Na6 {[%clk
0:02:17.9]} 17. Ng4 {[%clk 0:02:30.1]} 17... Nxg4 {[%clk 0:02:12]} 18. Qxg4
{[%clk 0:02:32]} 18... Bf8 {[%clk 0:02:13.1]} 19. Nf3 {[%clk 0:02:11.3]} 19...
dxe4 {[%clk 0:02:01.7]} 20. dxe4 {[%clk 0:02:10.2]} 20... Nb4 {[%clk 0:02:02.3]}
21. Rxd8 {[%clk 0:02:01.3]} 21... Rxd8 {[%clk 0:02:02.7]} 22. Re2 {[%clk
0:02:02.9]} 22... Rd1+ {[%clk 0:01:54.2]} 23. Kh2 {[%clk 0:02:03]} 23... Rb1
{[%clk 0:01:46]} 24. Be5 {[%clk 0:01:57.8]} 24... Qc8 {[%clk 0:01:41.1]} 25. Rd2
{[%clk 0:01:51.6]} 25... Rc1 {[%clk 0:01:30.1]} 26. Bf6 {[%clk 0:01:48.7]} 26...
h5 {[%clk 0:01:09]} 27. Qg5 {[%clk 0:01:31.9]} 27... Bg6 {[%clk 0:01:09.5]} 28.
Bc3 {[%clk 0:00:49.4]} 28... Rxc2 {[%clk 0:00:56.1]} 29. Bxb4 {[%clk 0:00:48.7]}
29... Rxd2 {[%clk 0:00:48.7]} 30. Bxd2 {[%clk 0:00:50.6]} 30... Qd7 {[%clk
0:00:45.6]} 31. Ne5 {[%clk 0:00:49.5]} 31... Qd3 {[%clk 0:00:35.8]} 32. Nxg6
{[%clk 0:00:49.4]} 32... fxg6 {[%clk 0:00:36]} 33. Qe3 {[%clk 0:00:47.8]} 33...
Qc2 {[%clk 0:00:31.3]} 34. Qc3 {[%clk 0:00:43]} 34... Qxc3 {[%clk 0:00:25.7]}
35. Bxc3 {[%clk 0:00:43.9]} 35... Bb4 {[%clk 0:00:27.4]} 36. Bxb4 {[%clk
0:00:43.3]} 36... axb4 {[%clk 0:00:28.3]} 37. e5 {[%clk 0:00:44.6]} 37... Kf7
{[%clk 0:00:26.9]} 38. f4 {[%clk 0:00:45.9]} 38... Ke7 {[%clk 0:00:26.9]} 39.
Be4 {[%clk 0:00:47.1]} 39... Kf7 {[%clk 0:00:27.2]} 40. Kg2 {[%clk 0:00:48.4]}
1-0

[Event "*** Titled Tuesday Blitz AM"]
[Site "Chess.com"]
[Date "2020.01.07"]
[Round "8"]
[White "WelshTiger"]
[Black "Sjakkerntobi"]
[Result "1-0"]
[WhiteElo "2387"]
[BlackElo "2263"]
[TimeControl "180+2"]
[EndTime "10:50:21 PST"]
[Termination "WelshTiger won by checkmate"]

1. e4 {[%clk 0:03:01.9]} 1... c5 {[%clk 0:03:00.4]} 2. Nf3 {[%clk 0:03:02.5]}
2... e6 {[%clk 0:03:01.4]} 3. d4 {[%clk 0:03:03.3]} 3... cxd4 {[%clk 0:03:03.3]}
4. Nxd4 {[%clk 0:03:04.6]} 4... Nc6 {[%clk 0:03:05.2]} 5. Nb5 {[%clk 0:03:05.2]}
5... d6 {[%clk 0:03:03.6]} 6. c4 {[%clk 0:03:05.8]} 6... Nf6 {[%clk 0:03:02.3]}
7. N1c3 {[%clk 0:03:07]} 7... a6 {[%clk 0:03:03.1]} 8. Na3 {[%clk 0:03:08.2]}
8... Be7 {[%clk 0:03:03.9]} 9. Be2 {[%clk 0:03:09.6]} 9... O-O {[%clk
0:03:04.8]} 10. O-O {[%clk 0:03:07.1]} 10... b6 {[%clk 0:03:05.5]} 11. Be3
{[%clk 0:03:06.2]} 11... Bb7 {[%clk 0:03:04.3]} 12. Qb3 {[%clk 0:03:05.2]} 12...
Nd7 {[%clk 0:03:03.4]} 13. Rad1 {[%clk 0:03:01.6]} 13... Qc7 {[%clk 0:02:53.2]}
14. Rc1 {[%clk 0:02:55.2]} 14... Nc5 {[%clk 0:02:53.2]} 15. Qc2 {[%clk
0:02:55.7]} 15... Rac8 {[%clk 0:02:50]} 16. Nab1 {[%clk 0:02:55.9]} 16... Rfd8
{[%clk 0:02:49.2]} 17. a3 {[%clk 0:02:53.1]} 17... Bf6 {[%clk 0:02:39.6]} 18. f4
{[%clk 0:02:48]} 18... Nd4 {[%clk 0:02:37.1]} 19. Qd1 {[%clk 0:02:31.4]} 19...
Nxe2+ {[%clk 0:02:34.8]} 20. Qxe2 {[%clk 0:02:29]} 20... Nb3 {[%clk 0:02:28.7]}
21. Rcd1 {[%clk 0:02:23]} 21... Qxc4 {[%clk 0:02:27.8]} 22. Qxc4 {[%clk
0:02:20.4]} 22... Rxc4 {[%clk 0:02:27.7]} 23. Bxb6 {[%clk 0:02:22]} 23... Bd4+
{[%clk 0:02:24.6]} 24. Bxd4 {[%clk 0:02:21.8]} 24... Rxd4 {[%clk 0:02:26.5]} 25.
Rxd4 {[%clk 0:02:14.8]} 25... Nxd4 {[%clk 0:02:28.4]} 26. Rd1 {[%clk 0:02:11.5]}
26... Nb3 {[%clk 0:02:26.7]} 27. Nd2 {[%clk 0:02:05.9]} 27... Nc5 {[%clk
0:02:24.2]} 28. Kf2 {[%clk 0:01:59.9]} 28... Kf8 {[%clk 0:02:15.4]} 29. Ke3
{[%clk 0:02:00.8]} 29... Ke7 {[%clk 0:02:14.9]} 30. Rc1 {[%clk 0:01:56.4]} 30...
d5 {[%clk 0:02:05.8]} 31. exd5 {[%clk 0:01:53.9]} 31... exd5 {[%clk 0:02:06.2]}
32. Ne2 {[%clk 0:01:45.8]} 32... Ne6 {[%clk 0:01:58.3]} 33. Nd4 {[%clk
0:01:42.4]} 33... Nxd4 {[%clk 0:01:56.8]} 34. Kxd4 {[%clk 0:01:38.4]} 34... Rc8
{[%clk 0:01:58.3]} 35. Rxc8 {[%clk 0:01:38.2]} 35... Bxc8 {[%clk 0:02:00.2]} 36.
Nb3 {[%clk 0:01:27.7]} 36... Kd6 {[%clk 0:02:00.4]} 37. Nc5 {[%clk 0:01:27.2]}
37... a5 {[%clk 0:01:59]} 38. b4 {[%clk 0:01:27.4]} 38... axb4 {[%clk
0:01:59.4]} 39. axb4 {[%clk 0:01:28.7]} 39... h6 {[%clk 0:02:00.5]} 40. g3
{[%clk 0:01:29.7]} 40... g5 {[%clk 0:02:00.5]} 41. b5 {[%clk 0:01:28.4]} 41...
gxf4 {[%clk 0:01:50]} 42. gxf4 {[%clk 0:01:29]} 42... Be6 {[%clk 0:01:51.9]} 43.
b6 {[%clk 0:01:20.7]} 43... Kc6 {[%clk 0:01:52]} 44. b7 {[%clk 0:01:18.9]} 44...
Kc7 {[%clk 0:01:52.3]} 45. Ke5 {[%clk 0:01:17.3]} 45... Bh3 {[%clk 0:01:47.2]}
46. Kxd5 {[%clk 0:01:18.2]} 46... Bg2+ {[%clk 0:01:47.3]} 47. Ke5 {[%clk
0:01:19.4]} 47... Bf1 {[%clk 0:01:43]} 48. h4 {[%clk 0:01:14.1]} 48... h5 {[%clk
0:01:40.2]} 49. Kf6 {[%clk 0:01:13.5]} 49... Bc4 {[%clk 0:01:40.8]} 50. Ne4
{[%clk 0:01:06.1]} 50... Bd5 {[%clk 0:01:37.6]} 51. Nd6 {[%clk 0:01:07]} 51...
Bf3 {[%clk 0:01:33.2]} 52. Kxf7 {[%clk 0:01:07.7]} 52... Bg4 {[%clk 0:01:26.4]}
53. Ke7 {[%clk 0:01:07.7]} 53... Bh3 {[%clk 0:01:23.8]} 54. f5 {[%clk
0:01:07.3]} 54... Kb8 {[%clk 0:01:23.6]} 55. f6 {[%clk 0:01:07]} 55... Bg4
{[%clk 0:01:22.7]} 56. f7 {[%clk 0:01:07.8]} 56... Ka7 {[%clk 0:01:24.1]} 57.
f8=Q {[%clk 0:01:08.9]} 57... Be2 {[%clk 0:01:18.9]} 58. Qa8+ {[%clk 0:01:09]}
58... Kb6 {[%clk 0:01:20.8]} 59. b8=Q+ {[%clk 0:01:10.2]} 59... Kc5 {[%clk
0:01:22.7]} 60. Qc7+ {[%clk 0:01:04.4]} 60... Kd4 {[%clk 0:01:24.6]} 61. Qe4#
{[%clk 0:01:04.3]} 1-0